bitfinex/quotes_BTCUSD_20241130
["timestamp","ask_amount","ask_price","bid_price","bid_amount"]
[1732998113828,0.16013737,97101.0,97100.0,0.18798574]
[1732998114533,0.15113737,97101.0,97100.0,0.18798574]
[1732998114733,0.16013737,97101.0,97100.0,0.18798574]
[1732998117511,0.33013737,97101.0,97100.0,0.18798574]
[1732998119339,0.33013737,97101.0,97100.0,0.10768574]
[1732998119578,0.32085737,97101.0,97100.0,0.10768574]
[1732998120923,0.15085737,97101.0,97100.0,0.10768574]
[1732998121622,0.15085737,97101.0,97100.0,0.22908574]
[1732998125786,0.13473647,97101.0,97100.0,0.22908574]
[1732998126013,0.30473647,97101.0,97100.0,0.22908574]
[1732998126627,0.13473647,97101.0,97100.0,0.22908574]
[1732998126833,0.03647015,97101.0,97100.0,0.22908574]
[1732998127056,0.02147015,97101.0,97100.0,0.22908574]
[1732998128413,0.02847015,97101.0,97100.0,0.22908574]
[1732998131912,0.0078643,97101.0,97100.0,0.22908574]
[1732998138967,0.0078643,97101.0,97100.0,0.15268574]
[1732998142145,0.11070951,97101.0,97100.0,0.00469974]
[1732998142603,0.11070951,97101.0,97100.0,0.10768574]
[1732998143975,0.10870951,97101.0,97100.0,0.10768574]
[1732998144459,0.11470951,97101.0,97100.0,0.00469974]
[1732998144920,0.10370951,97101.0,97100.0,0.00469974]
[1732998145388,0.10670951,97101.0,97100.0,0.00469974]
[1732998145875,0.11070951,97101.0,97100.0,0.00469974]
[1732998146110,0.10870951,97101.0,97100.0,0.00469974]
[1732998146345,0.11770951,97101.0,97100.0,0.00469974]
[1732998147495,0.22069451,97101.0,97100.0,0.00044594]
[1732998147738,0.22069451,97101.0,97100.0,0.00466767]
[1732998147964,0.22069451,97101.0,97100.0,0.00044594]
[1732998148289,0.21569451,97101.0,97100.0,0.00044594]
[1732998148668,0.21269451,97101.0,97100.0,0.00044594]
[1732998148908,0.22169451,97101.0,97100.0,0.00044594]
[1732998149140,0.21569451,97101.0,97100.0,0.00044594]
[1732998150833,0.33929451,97101.0,97100.0,0.00044594]
[1732998151053,0.50929451,97101.0,97100.0,0.00044594]
[1732998151266,0.51829451,97101.0,97100.0,0.00044594]
[1732998151526,0.35429451,97101.0,97100.0,0.00044594]
[1732998152090,0.34829451,97101.0,97100.0,0.00044594]
[1732998152318,0.35429451,97101.0,97100.0,0.00044594]
[1732998152558,0.34529451,97101.0,97100.0,0.00044594]
[1732998152762,0.34829451,97101.0,97100.0,0.00044594]
[1732998153239,0.35729451,97101.0,97100.0,0.00044594]
[1732998154016,0.34829451,97101.0,97100.0,0.00044594]
[1732998154217,0.35729451,97101.0,97100.0,0.00044594]
[1732998154646,0.34829451,97101.0,97100.0,0.00044594]
[1732998155073,0.36692743,97101.0,97100.0,0.00044594]
[1732998158678,0.52729451,97101.0,97100.0,0.00044594]
[1732998158911,0.5369195,97101.0,97100.0,0.00044594]
[1732998160329,0.67729451,97101.0,97100.0,0.00044594]
[1732998160796,0.68691686,97101.0,97100.0,0.00044594]
[1732998162035,0.68691589,97101.0,97100.0,0.00044594]
[1732998165533,0.71641227,97101.0,97100.0,0.00044594]
[1732998165785,0.52774057,97101.0,97100.0,0.00044594]
[1732998166013,1.20461919,97101.0,97100.0,0.00044594]
[1732998166235,0.52774066,97101.0,97100.0,0.00044594]
[1732998166456,0.51874066,97101.0,97100.0,0.00044594]
[1732998167154,0.52774066,97101.0,97100.0,0.00044594]
[1732998167658,0.51874066,97101.0,97100.0,0.00044594]
[1732998167892,0.52774066,97101.0,97100.0,0.00044594]
[1732998168106,0.51874066,97101.0,97100.0,0.00044594]
[1732998168454,0.52774066,97101.0,97100.0,0.00044594]
[1732998169040,0.52691598,97101.0,97100.0,0.00044594]
[1732998169267,0.52691479,97101.0,97100.0,0.00044594]
[1732998171795,1.21341479,97101.0,97100.0,0.00044594]
[1732998172937,0.81691479,97101.0,97100.0,0.00044594]
[1732998174273,0.76721479,97101.0,97100.0,0.00044594]
[1732998176741,0.75759451,97101.0,97100.0,0.00044594]
[1732998176977,0.76722616,97101.0,97100.0,0.00044594]
[1732998178092,1.45372616,97101.0,97100.0,0.00044594]
[1732998178779,1.37082616,97101.0,97100.0,0.00044594]
[1732998180183,1.37083417,97101.0,97100.0,0.00044594]
[1732998180635,1.07083417,97101.0,97100.0,0.00044594]
[1732998180887,1.06183417,97101.0,97100.0,0.00044594]
[1732998181147,1.05283417,97101.0,97100.0,0.00044594]
[1732998181360,1.06983417,97101.0,97100.0,0.00044594]
[1732998181798,1.06083417,97101.0,97100.0,0.00044594]
[1732998182030,1.06983417,97101.0,97100.0,0.00044594]
[1732998182482,1.06183959,97101.0,97100.0,0.00044594]
[1732998182749,1.06083959,97101.0,97100.0,0.00044594]
[1732998183609,1.05968765,97101.0,97100.0,0.00044594]
[1732998184755,1.06868765,97101.0,97100.0,0.00044594]
[1732998185251,1.05968765,97101.0,97100.0,0.00044594]
[1732998185484,1.06868765,97101.0,97100.0,0.00044594]
[1732998186322,1.08480895,97101.0,97100.0,0.00044594]
[1732998188569,1.08567315,97101.0,97100.0,0.00044594]
[1732998189469,1.0856695,97101.0,97100.0,0.00044594]
[1732998196748,1.08566834,97101.0,97100.0,0.00044594]
[1732998204585,1.06954704,97101.0,97100.0,0.00044594]
[1732998207457,1.06956525,97101.0,97100.0,0.00044594]
[1732998207916,0.38306525,97101.0,97100.0,0.00044594]
[1732998213235,0.55306525,97101.0,97100.0,0.00044594]
[1732998214421,0.54340677,97101.0,97100.0,0.00044594]
[1732998214643,0.55306549,97101.0,97100.0,0.00044594]
[1732998215061,0.102986,97100.0,97099.0,0.00062784]
[1732998215265,0.20583121,97100.0,97099.0,0.00062784]
[1732998216498,0.22349003,97100.0,97099.0,0.00062784]
[1732998217400,0.22283121,97100.0,97099.0,0.00062784]
[1732998217630,0.23248999,97100.0,97099.0,0.00062784]
[1732998220957,0.22283121,97100.0,97099.0,0.00062784]
[1732998222949,0.23248946,97100.0,97099.0,0.00062784]
[1732998223614,0.36458946,97100.0,97099.0,0.00062784]
[1732998224877,0.36458946,97100.0,97088.0,0.16640656]
[1732998224878,0.102998,97089.0,97088.0,0.16640656]
[1732998225100,0.20584321,97089.0,97088.0,0.16640656]
[1732998225307,0.20584321,97089.0,97088.0,0.0040612]
[1732998225726,0.10284521,97089.0,97085.0,0.23173704]
[1732998225937,0.20584521,97088.0,97085.0,0.23173704]
[1732998226166,0.20584521,97088.0,97085.0,0.23179842]
[1732998226607,0.20584421,97088.0,97085.0,0.23179842]
[1732998226815,0.20584421,97088.0,97085.0,0.23188066]
[1732998227024,0.10284521,97088.0,97085.0,0.23188066]
[1732998227237,0.10284521,97088.0,97086.0,0.23181928]
[1732998227470,0.21484421,97088.0,97085.0,0.23188066]
[1732998228132,0.20584421,97088.0,97085.0,0.23188066]
[1732998228354,0.11184521,97088.0,97085.0,0.23188066]
[1732998228566,0.11184521,97088.0,97087.0,0.0484]
[1732998228787,0.11784521,97088.0,97087.0,0.0484]
[1732998229695,0.10284521,97088.0,97087.0,0.0484]
[1732998229906,0.11784521,97088.0,97087.0,0.0484]
[1732998230301,0.10884521,97088.0,97087.0,0.0484]
[1732998230511,0.11784521,97088.0,97087.0,0.0484]
[1732998231710,0.22084421,97088.0,97087.0,0.0484]
[1732998232429,0.11784521,97088.0,97087.0,0.0484]
[1732998233095,0.13844182,97088.0,97087.0,0.0484]
[1732998233920,0.13844182,97088.0,97087.0,0.0501286]
[1732998234472,0.13844182,97088.0,97087.0,0.05402893]
[1732998239091,0.11784521,97088.0,97087.0,0.05402893]
[1732998243348,0.11784521,97088.0,97087.0,0.15702893]
[1732998246130,0.11784521,97088.0,97087.0,0.38883962]
[1732998247270,0.13882318,97088.0,97087.0,0.38883962]
[1732998248650,0.13882318,97088.0,97087.0,0.38884441]
[1732998250597,0.13882318,97088.0,97087.0,0.38884825]
[1732998251030,0.13882318,97088.0,97087.0,0.28584825]
[1732998251706,0.13882318,97088.0,97087.0,0.23744825]
[1732998252000,0.24182218,97088.0,97087.0,0.23744825]
[1732998254047,0.22084421,97088.0,97087.0,0.23744825]
[1732998256611,0.22084421,97088.0,97087.0,0.19109671]
[1732998257084,0.22084421,97088.0,97087.0,0.00562893]
[1732998257303,0.22084421,97088.0,97087.0,0.19109671]
[1732998258880,0.22084421,97088.0,97087.0,0.19109211]
[1732998260157,0.22084421,97088.0,97087.0,0.17081867]
[1732998260603,0.22084421,97088.0,97087.0,0.00370283]
[1732998260821,0.103001,97086.0,97085.0,6.138e-05]
[1732998261039,0.20584621,97086.0,97085.0,6.138e-05]
[1732998262211,0.21484621,97086.0,97085.0,6.138e-05]
[1732998262442,0.22084621,97086.0,97085.0,6.138e-05]
[1732998264755,0.22057326,97086.0,97085.0,6.138e-05]
[1732998267677,0.22057326,97086.0,97085.0,0.00388994]
[1732998267914,0.22057326,97086.0,97085.0,6.138e-05]
[1732998268049,0.22057326,97086.0,97085.0,0.00389039]
[1732998268682,0.22057326,97086.0,97085.0,0.18932269]
[1732998269087,0.22057326,97086.0,97085.0,0.00389039]
[1732998269289,0.22057326,97086.0,97085.0,0.18931625]
[1732998270297,0.22057326,97086.0,97085.0,0.19104485]
[1732998271105,0.22057326,97086.0,97085.0,0.00561899]
[1732998278955,0.11784521,97086.0,97085.0,0.00561899]
[1732998279431,0.22084621,97086.0,97085.0,0.00561899]
[1732998280855,0.11784521,97086.0,97085.0,0.00561899]
[1732998282409,0.11870951,97086.0,97085.0,0.00561899]
[1732998286269,0.22171051,97086.0,97085.0,0.00561899]
[1732998287683,0.11870951,97086.0,97085.0,0.00561899]
[1732998291174,0.22171051,97086.0,97085.0,0.00561899]
[1732998293998,0.34431051,97086.0,97085.0,0.00561899]
[1732998294230,0.35396187,97086.0,97085.0,0.00561899]
[1732998295187,0.35396147,97086.0,97085.0,0.00561899]
[1732998297773,0.23136147,97086.0,97085.0,0.00561899]
[1732998298005,0.22171051,97086.0,97085.0,0.00561899]
[1732998303537,0.27101051,97086.0,97085.0,0.00561899]
[1732998305148,0.22171051,97086.0,97085.0,0.00561899]
[1732998308799,0.23136147,97086.0,97085.0,0.00561899]
[1732998310705,0.22171051,97086.0,97085.0,0.00561899]
[1732998310914,0.23136147,97086.0,97085.0,0.00561899]
[1732998312042,0.23136269,97086.0,97085.0,0.00561899]
[1732998314978,0.22171051,97086.0,97085.0,0.00561899]
[1732998321612,0.23136458,97086.0,97085.0,0.00561899]
[1732998322453,0.23136546,97086.0,97085.0,0.00561899]
[1732998322866,0.22171051,97086.0,97085.0,0.00561899]
[1732998323083,0.23136546,97086.0,97085.0,0.00561899]
[1732998325921,0.23136591,97086.0,97085.0,0.00561899]
[1732998331467,0.22171051,97086.0,97085.0,0.00561899]
[1732998331948,0.11870951,97086.0,97085.0,0.13241899]
[1732998333062,0.11870951,97086.0,97085.0,0.05191899]
[1732998334170,0.13959647,97086.0,97085.0,0.05191899]
[1732998339105,0.11870951,97086.0,97085.0,0.05191899]
[1732998340435,0.11870951,97086.0,97085.0,0.04808998]
[1732998340639,0.11870951,97086.0,97085.0,0.05213972]
[1732998349491,0.11870951,97086.0,97085.0,0.15514172]
[1732998359116,0.0158643,97086.0,97085.0,0.23596472]
[1732998359346,0.0158643,97086.0,97085.0,0.23414172]
[1732998360883,0.0068643,97086.0,97085.0,0.23414172]
[1732998361304,0.0038643,97086.0,97085.0,0.23414172]
[1732998361723,0.0088643,97086.0,97085.0,0.23414172]
[1732998362165,0.0038643,97086.0,97085.0,0.23414172]
[1732998362727,0.0048643,97086.0,97085.0,0.23414172]
[1732998363975,0.0048643,97086.0,97085.0,0.23252282]
[1732998368858,0.0048643,97086.0,97085.0,0.24252282]
[1732998369553,0.0038643,97086.0,97085.0,0.24252282]
[1732998370544,0.0008643,97086.0,97085.0,0.24252282]
[1732998370982,0.0028643,97086.0,97085.0,0.24252282]
[1732998382145,0.0028643,97086.0,97085.0,0.16352282]
[1732998382356,0.0028643,97086.0,97085.0,0.10904553]
[1732998382569,0.0028643,97086.0,97085.0,0.38642768]
[1732998382801,0.0028643,97086.0,97085.0,0.10722282]
[1732998383000,0.0028643,97086.0,97085.0,0.10904563]
[1732998384095,0.0028643,97086.0,97085.0,0.10722282]
[1732998385038,0.33691051,97086.0,97085.0,0.23541237]
[1732998385306,0.33691051,97086.0,97085.0,0.00422082]
[1732998386667,0.33491051,97086.0,97085.0,0.00422082]
[1732998386874,0.33991051,97086.0,97085.0,0.00422082]
[1732998387078,0.33491051,97086.0,97085.0,0.00422082]
[1732998387296,0.33591051,97086.0,97085.0,0.00422082]
[1732998387519,0.34391051,97086.0,97085.0,0.00422082]
[1732998387763,0.34291051,97086.0,97085.0,0.00422082]
[1732998387957,0.34691051,97086.0,97085.0,0.00422082]
[1732998394934,0.24390951,97086.0,97085.0,0.00422082]
[1732998395151,0.34691051,97086.0,97085.0,0.00422082]
[1732998396717,0.34691051,97086.0,97085.0,0.18924058]
[1732998397379,0.34691051,97086.0,97085.0,0.00422082]
[1732998398298,0.24390951,97086.0,97085.0,0.00422082]
[1732998398714,0.24390951,97086.0,97085.0,0.00442082]
[1732998400501,0.24390951,97086.0,97085.0,0.18946125]
[1732998409194,0.24390951,97086.0,97085.0,0.18948472]
[1732998409851,0.19520951,97086.0,97085.0,0.00442082]
[1732998410694,0.19520951,97086.0,97085.0,0.00037108]
[1732998410915,0.19520951,97086.0,97085.0,0.18543059]
[1732998411159,0.19520951,97086.0,97085.0,0.18884877]
[1732998411851,0.11570951,97086.0,97085.0,0.18884804]
[1732998412077,0.11570951,97086.0,97085.0,0.10679126]
[1732998414748,0.11570951,97086.0,97085.0,0.2918543]
[1732998415353,0.11570951,97086.0,97085.0,0.10679126]
[1732998415780,0.11570951,97086.0,97085.0,0.29186211]
[1732998416449,0.11570951,97086.0,97085.0,0.10679126]
[1732998416867,0.11570951,97086.0,97085.0,0.29186936]
[1732998417088,0.11570951,97086.0,97085.0,0.10679126]
[1732998417311,0.11570951,97086.0,97085.0,0.2918804]
[1732998417808,0.11570951,97086.0,97085.0,0.10679126]
[1732998420871,0.11570951,97086.0,97085.0,0.33820064]
[1732998421500,0.11570951,97086.0,97085.0,0.10679126]
[1732998421928,0.11570951,97086.0,97085.0,0.33820064]
[1732998422567,0.11570951,97086.0,97085.0,0.10679126]
[1732998422988,0.11570951,97086.0,97085.0,0.33820064]
[1732998423189,0.11570951,97086.0,97085.0,0.10679126]
[1732998431286,0.11570951,97086.0,97085.0,0.38464662]
[1732998431694,0.11570951,97086.0,97085.0,0.10679126]
[1732998433417,1.01570951,97086.0,97085.0,0.10679126]
[1732998443328,1.01570951,97086.0,97085.0,0.10431208]
[1732998443546,1.01570951,97086.0,97085.0,0.10629956]
[1732998446498,0.9128643,97086.0,97085.0,0.10629956]
[1732998451366,1.01570951,97086.0,97085.0,0.00329756]
[1732998451793,1.11871051,97086.0,97081.0,0.103006]
[1732998451998,0.10284521,97085.0,97082.0,0.103005]
[1732998452411,0.10284521,97085.0,97079.0,0.206016]
[1732998452607,0.10284521,97085.0,97078.0,0.41074451]
[1732998452963,0.103008,97079.0,97078.0,0.41074451]
[1732998453189,0.20585321,97079.0,97078.0,0.41074451]
[1732998454590,0.21285321,97079.0,97078.0,0.41074451]
[1732998458181,0.25945321,97079.0,97078.0,0.41074451]
[1732998458436,0.103011,97077.0,97072.0,0.18533321]
[1732998458649,0.20585621,97077.0,97072.0,0.18533321]
[1732998458867,0.20585621,97077.0,97076.0,0.00456708]
[1732998459090,0.20585621,97077.0,97076.0,0.0013376]
[1732998459319,0.20585621,97077.0,97076.0,0.00456708]
[1732998459534,0.20585621,97077.0,97076.0,0.0013376]
[1732998459808,0.21485621,97077.0,97076.0,0.00456708]
[1732998460241,0.22185621,97077.0,97076.0,0.00456708]
[1732998460462,0.21285621,97077.0,97076.0,0.00456708]
[1732998460887,0.22185621,97077.0,97076.0,0.00456708]
[1732998463304,0.22185621,97077.0,97076.0,0.0013376]
[1732998465456,0.29815621,97077.0,97076.0,0.0013376]
[1732998465642,0.29815621,97077.0,97076.0,0.003066]
[1732998466348,0.29115621,97077.0,97076.0,0.003066]
[1732998466566,0.28215621,97077.0,97076.0,0.003066]
[1732998466813,0.28915621,97077.0,97076.0,0.003066]
[1732998467061,0.34585621,97077.0,97076.0,0.003066]
[1732998467277,0.33885621,97077.0,97076.0,0.003066]
[1732998467509,0.34585621,97077.0,97076.0,0.003066]
[1732998468631,0.33885621,97077.0,97076.0,0.003066]
[1732998469080,0.34685621,97077.0,97076.0,0.003066]
[1732998469942,0.32985621,97077.0,97076.0,0.003066]
[1732998470487,0.34685621,97077.0,97076.0,0.003066]
[1732998471368,0.36697071,97077.0,97076.0,0.003066]
[1732998473065,0.53697071,97077.0,97076.0,0.003066]
[1732998473510,1.53697072,97077.0,97076.0,0.003066]
[1732998474797,1.51685622,97077.0,97076.0,0.003066]
[1732998480427,0.51685621,97077.0,97076.0,0.003066]
[1732998481590,1.41685621,97077.0,97076.0,0.003066]
[1732998482063,1.40885621,97077.0,97076.0,0.003066]
[1732998482512,1.41685621,97077.0,97076.0,0.003066]
[1732998483003,2.41685622,97077.0,97076.0,0.003066]
[1732998483456,2.40785622,97077.0,97076.0,0.003066]
[1732998483727,2.41685622,97077.0,97076.0,0.003066]
[1732998488360,1.41685621,97077.0,97076.0,0.003066]
[1732998489420,1.43698351,97077.0,97076.0,0.003066]
[1732998492353,1.26698351,97077.0,97076.0,0.003066]
[1732998492809,1.43698351,97077.0,97076.0,0.003066]
[1732998493030,1.26698351,97077.0,97076.0,0.003066]
[1732998494992,1.24685621,97077.0,97076.0,0.003066]
[1732998496945,1.39685621,97077.0,97076.0,0.003066]
[1732998498407,1.41985621,97077.0,97076.0,0.003066]
[1732998499998,1.39685621,97077.0,97076.0,0.003066]
[1732998501823,1.4267528,97077.0,97076.0,0.003066]
[1732998502712,2.1137528,97077.0,97076.0,0.003066]
[1732998503872,2.14588929,97077.0,97076.0,0.003066]
[1732998504530,2.14588805,97077.0,97076.0,0.003066]
[1732998504811,2.12563528,97077.0,97076.0,0.003066]
[1732998506793,2.09349879,97077.0,97076.0,0.003066]
[1732998511660,2.11423666,97077.0,97076.0,0.003066]
[1732998512095,2.11423122,97077.0,97076.0,0.003066]
[1732998513429,1.42723122,97077.0,97076.0,0.003066]
[1732998514549,1.40649335,97077.0,97076.0,0.003066]
[1732998515242,1.40649501,97077.0,97076.0,0.003066]
[1732998518469,2.09349501,97077.0,97076.0,0.003066]
[1732998518711,2.08385621,97077.0,97076.0,0.003066]
[1732998519120,2.0934978,97077.0,97076.0,0.003066]
[1732998523217,2.1143015,97077.0,97076.0,0.003066]
[1732998524900,2.0934978,97077.0,97076.0,0.003066]
[1732998529294,2.08385621,97077.0,97076.0,0.003066]
[1732998531418,2.11600884,97077.0,97076.0,0.003066]
[1732998531638,2.08385621,97077.0,97076.0,0.003066]
[1732998531854,2.11600993,97077.0,97076.0,0.003066]
[1732998532320,2.12565595,97077.0,97076.0,0.003066]
[1732998532743,2.14586831,97077.0,97076.0,0.003066]
[1732998534587,2.12565595,97077.0,97076.0,0.003066]
[1732998535007,2.09350223,97077.0,97076.0,0.003066]
[1732998535865,2.12565768,97077.0,97076.0,0.003066]
[1732998536291,2.09350223,97077.0,97076.0,0.003066]
[1732998539702,2.1256593,97077.0,97076.0,0.003066]
[1732998540147,2.0493593,97077.0,97076.0,0.003066]
[1732998540286,2.07027888,97077.0,97076.0,0.003066]
[1732998540520,2.02257888,97077.0,97076.0,0.003066]
[1732998544712,2.0016593,97077.0,97076.0,0.003066]
[1732998544916,1.3146593,97077.0,97076.0,0.003066]
[1732998546354,1.30501328,97077.0,97076.0,0.003066]
[1732998546492,1.31466261,97077.0,97076.0,0.003066]
[1732998550603,1.48466261,97077.0,97076.0,0.003066]
[1732998551073,1.5055762,97077.0,97076.0,0.003066]
[1732998553136,1.49592687,97077.0,97076.0,0.003066]
[1732998554926,1.47501328,97077.0,97076.0,0.003066]
[1732998555672,1.49801328,97077.0,97076.0,0.003066]
[1732998560005,1.51872276,97077.0,97076.0,0.003066]
[1732998561790,1.34872276,97077.0,97076.0,0.003066]
[1732998564745,1.32801328,97077.0,97076.0,0.003066]
[1732998567028,1.49801328,97077.0,97076.0,0.003066]
[1732998568641,1.32801328,97077.0,97076.0,0.003066]
[1732998569634,1.34845276,97077.0,97076.0,0.003066]
[1732998573679,1.51845276,97077.0,97076.0,0.003066]
[1732998574582,1.49801328,97077.0,97076.0,0.003066]
[1732998578295,1.50766225,97077.0,97076.0,0.003066]
[1732998578903,1.49801328,97077.0,97076.0,0.003066]
[1732998579596,1.51898679,97077.0,97076.0,0.003066]
[1732998580269,1.52863497,97077.0,97076.0,0.003066]
[1732998581441,1.51898679,97077.0,97076.0,0.003066]
[1732998582413,1.53863354,97077.0,97076.0,0.003066]
[1732998583330,1.52898679,97077.0,97076.0,0.003066]
[1732998584693,1.50801328,97077.0,97076.0,0.003066]
[1732998585424,1.60411585,97077.0,97076.0,0.003066]
[1732998585652,1.61925557,97077.0,97076.0,0.003066]
[1732998586354,1.61923689,97077.0,97076.0,0.003066]
[1732998587490,1.43411585,97077.0,97076.0,0.003066]
[1732998588881,1.43823985,97077.0,97076.0,0.003066]
[1732998589119,1.43823985,97077.0,97076.0,0.0017284]
[1732998589334,1.34213728,97077.0,97076.0,0.0017284]
[1732998590699,1.51213728,97077.0,97076.0,0.0017284]
[1732998591125,1.53244267,97077.0,97076.0,0.0017284]
[1732998592438,1.71743606,97077.0,97076.0,0.0017284]
[1732998592655,1.53244267,97077.0,97076.0,0.0017284]
[1732998595375,1.51213728,97077.0,97076.0,0.0017284]
[1732998597378,1.52176994,97077.0,97076.0,0.0017284]
[1732998598236,1.51213728,97077.0,97076.0,0.0017284]
[1732998598461,1.69708093,97077.0,97076.0,0.0017284]
[1732998600515,1.71721626,97077.0,97076.0,0.0017284]
[1732998604602,1.79991239,97077.0,97076.0,0.0017284]
[1732998605304,1.61496874,97077.0,97076.0,0.0017284]
[1732998605513,1.51213728,97077.0,97076.0,0.0017284]
[1732998605721,1.34213728,97077.0,97076.0,0.0017284]
[1732998607068,1.51213728,97077.0,97076.0,0.0017284]
[1732998607318,1.39697272,97077.0,97076.0,4e-07]
[1732998607556,1.49980418,97077.0,97076.0,4e-07]
[1732998608047,1.38897272,97077.0,97076.0,4e-07]
[1732998608286,1.61049312,97077.0,97076.0,4e-07]
[1732998608761,1.60149312,97077.0,97076.0,4e-07]
[1732998608991,1.61049312,97077.0,97076.0,4e-07]
[1732998610416,1.61949312,97077.0,97076.0,4e-07]
[1732998610693,1.57429312,97077.0,97076.0,4e-07]
[1732998613072,1.59468956,97077.0,97076.0,4e-07]
[1732998613325,2.28168956,97077.0,97076.0,4e-07]
[1732998614489,2.37552102,97077.0,97076.0,4e-07]
[1732998614713,2.35512458,97077.0,97076.0,4e-07]
[1732998614929,2.36408614,97077.0,97076.0,4e-07]
[1732998615385,2.34608614,97077.0,97076.0,4e-07]
[1732998615616,2.35508614,97077.0,97076.0,4e-07]
[1732998615888,2.01213728,97077.0,97076.0,4e-07]
[1732998616123,1.32513728,97077.0,97076.0,4e-07]
[1732998616360,1.33413728,97077.0,97076.0,4e-07]
[1732998617273,1.34313728,97077.0,97076.0,4e-07]
[1732998618484,1.57426441,97077.0,97076.0,4e-07]
[1732998620064,1.67709587,97077.0,97076.0,4e-07]
[1732998621242,2.36409587,97077.0,97076.0,4e-07]
[1732998621447,2.37373874,97077.0,97076.0,4e-07]
[1732998622397,2.13296874,97077.0,97076.0,4e-07]
[1732998623511,2.16306604,97077.0,97076.0,4e-07]
[1732998624450,2.14261236,97077.0,97076.0,4e-07]
[1732998625339,2.13296874,97077.0,97076.0,4e-07]
[1732998626590,1.44596874,97077.0,97076.0,4e-07]
[1732998627232,1.34313728,97077.0,97076.0,4e-07]
[1732998628953,1.34313728,97077.0,97076.0,0.0454004]
[1732998629568,1.36334555,97077.0,97076.0,0.0454004]
[1732998631943,2.05034555,97077.0,97076.0,0.0454004]
[1732998633001,2.05034555,97077.0,97076.0,4e-07]
[1732998633632,2.15317701,97077.0,97076.0,4e-07]
[1732998634448,2.13296874,97077.0,97076.0,4e-07]
[1732998638367,2.12884474,97077.0,97076.0,4e-07]
[1732998640391,2.12970894,97077.0,97076.0,4e-07]
[1732998641552,1.44270894,97077.0,97076.0,4e-07]
[1732998642451,1.46291057,97077.0,97076.0,4e-07]
[1732998644611,1.43270894,97077.0,97076.0,4e-07]
[1732998644852,1.44270894,97077.0,97076.0,4e-07]
[1732998646648,2.02687748,97077.0,97076.0,4e-07]
[1732998648591,1.33987748,97077.0,97076.0,4e-07]
[1732998650205,1.36100199,97077.0,97076.0,4e-07]
[1732998653624,2.04800199,97077.0,97076.0,4e-07]
[1732998654565,2.02687748,97077.0,97076.0,4e-07]
[1732998654997,2.12970894,97077.0,97076.0,4e-07]
[1732998655234,2.13935527,97077.0,97076.0,4e-07]
[1732998655451,2.03652381,97077.0,97076.0,4e-07]
[1732998660775,2.05742661,97077.0,97076.0,4e-07]
[1732998661023,2.05742927,97077.0,97076.0,4e-07]
[1732998661481,2.04742927,97077.0,97076.0,4e-07]
[1732998662336,2.03842927,97077.0,97076.0,4e-07]
[1732998662752,2.04742927,97077.0,97076.0,4e-07]
[1732998662965,2.18502927,97077.0,97076.0,4e-07]
[1732998663183,2.17602927,97077.0,97076.0,4e-07]
[1732998664317,2.18502927,97077.0,97076.0,4e-07]
[1732998664744,2.16412647,97077.0,97076.0,4e-07]
[1732998665197,2.03652647,97077.0,97076.0,4e-07]
[1732998665456,2.32652647,97077.0,97076.0,4e-07]
[1732998665668,1.63952647,97077.0,97076.0,4e-07]
[1732998665885,1.61652647,97077.0,97076.0,4e-07]
[1732998667327,1.63952647,97077.0,97076.0,4e-07]
[1732998668432,1.6073694,97077.0,97076.0,4e-07]
[1732998670618,1.62799651,97077.0,97076.0,4e-07]
[1732998670849,1.79798585,97077.0,97076.0,4e-07]
[1732998674516,1.77498585,97077.0,97076.0,4e-07]
[1732998674769,1.6164784,97077.0,97076.0,4e-07]
[1732998674980,1.70899643,97077.0,97076.0,4e-07]
[1732998675518,1.6164784,97077.0,97076.0,4e-07]
[1732998676059,1.6951784,97077.0,97076.0,4e-07]
[1732998676271,1.83395516,97077.0,97076.0,4e-07]
[1732998676493,1.6951784,97077.0,97076.0,4e-07]
[1732998676979,1.83395593,97077.0,97076.0,4e-07]
[1732998677441,1.6951784,97077.0,97076.0,4e-07]
[1732998677672,1.83396057,97077.0,97076.0,4e-07]
[1732998677914,1.83395838,97077.0,97076.0,4e-07]
[1732998678371,1.69517621,97077.0,97076.0,4e-07]
[1732998678604,1.83395313,97077.0,97076.0,4e-07]
[1732998679482,1.83396094,97077.0,97076.0,4e-07]
[1732998679709,2.1067924,97077.0,97076.0,4e-07]
[1732998680430,1.96800767,97077.0,97076.0,4e-07]
[1732998680649,2.10679242,97077.0,97076.0,4e-07]
[1732998681330,1.95837153,97077.0,97076.0,4e-07]
[1732998681575,1.96800857,97077.0,97076.0,4e-07]
[1732998681830,2.10679331,97077.0,97076.0,4e-07]
[1732998682078,2.00396185,97077.0,97076.0,4e-07]
[1732998682298,2.02431628,97077.0,97076.0,4e-07]
[1732998682532,2.0243211,97077.0,97076.0,4e-07]
[1732998682753,1.88553154,97077.0,97076.0,4e-07]
[1732998684644,1.86517711,97077.0,97076.0,4e-07]
[1732998688310,2.00396407,97077.0,97076.0,4e-07]
[1732998688512,2.00396411,97077.0,97076.0,4e-07]
[1732998688737,1.78647856,97077.0,97076.0,4e-07]
[1732998689652,1.80703168,97077.0,97076.0,4e-07]
[1732998690804,1.9458215,97077.0,97076.0,4e-07]
[1732998691275,1.80703168,97077.0,97076.0,4e-07]
[1732998692193,1.9458244,97077.0,97076.0,4e-07]
[1732998692439,2.04865586,97077.0,97076.0,4e-07]
[1732998692663,1.9458244,97077.0,97076.0,4e-07]
[1732998692782,1.80703168,97077.0,97076.0,4e-07]
[1732998693212,1.94582429,97077.0,97076.0,4e-07]
[1732998693459,1.80703168,97077.0,97076.0,4e-07]
[1732998694577,1.92528311,97077.0,97076.0,4e-07]
[1732998695512,1.78648187,97077.0,97076.0,4e-07]
[1732998697089,1.92531274,97077.0,97076.0,4e-07]
[1732998697326,1.78648187,97077.0,97076.0,4e-07]
[1732998697771,1.9253151,97077.0,97076.0,4e-07]
[1732998697990,1.78648187,97077.0,97076.0,4e-07]
[1732998698215,1.9253151,97077.0,97076.0,4e-07]
[1732998698691,1.78648187,97077.0,97076.0,4e-07]
[1732998699864,1.92531959,97077.0,97076.0,4e-07]
[1732998700092,1.78648187,97077.0,97076.0,4e-07]
[1732998703522,1.8067873,97077.0,97076.0,4e-07]
[1732998704641,1.61648187,97077.0,97076.0,4e-07]
[1732998705331,1.75533239,97077.0,97076.0,4e-07]
[1732998705537,1.61648187,97077.0,97076.0,4e-07]
[1732998705965,1.80160518,97077.0,97076.0,4e-07]
[1732998707513,1.61648187,97077.0,97076.0,4e-07]
[1732998709888,1.78648187,97077.0,97076.0,4e-07]
[1732998712555,2.03879704,97077.0,97076.0,4e-07]
[1732998713461,1.93578604,97077.0,97076.0,4e-07]
[1732998713667,2.03879704,97077.0,97076.0,4e-07]
[1732998713890,2.02915524,97077.0,97076.0,4e-07]
[1732998714813,2.01795498,97077.0,97076.0,4e-07]